Cogmind - Beta 14 @@@ ROGUE MODE // 2025.04.22 @ 20:47:46 Player: winnking222 Result: Destroyed by UI-FX7(R) with Subdweller Machine Gun Performance ------------- Evolutions (0) 0 Regions Visited (3) 600 Robots Destroyed (27) 135 Value Destroyed (580) 580 Prototype IDs (0) 0 Alien Tech Used (0) 0 Bonus (0) 0 TOTAL SCORE: 1315 Bonus ------- None Cogmind --------- Core Integrity 0/250 Matter 258/300 Energy 100/100 System Corruption 0% Temperature Cool (0) Movement Core (1450) Ox28 Location -10/Subcaves Parts ------- > --- POWER (1) -------- (None) > --- PROPULSION (2) --- Aluminum Leg > --- UTILITY (2) ------ Improved Heat Sink Huge Storage Unit > --- WEAPON (2) ------- Assault Rifle Assault Rifle > --- INVENTORY (25) --- Subdweller Power Source Aluminum Leg High-capacity Storage Unit Huge Storage Unit Small Laser Assault Rifle Assault Rifle Assault Rifle Assault Rifle Light Assault Rifle Mining Laser Peak State ------------ > --- POWER ------------ Ion Engine > --- PROPULSION ------- Light Treads Wheel > --- UTILITY ---------- Improved Heat Sink Huge Storage Unit > --- WEAPON ----------- Assault Rifle Assault Rifle > --- INVENTORY -------- Aluminum Leg Aluminum Leg High-capacity Storage Unit Huge Storage Unit Small Laser Assault Rifle Assault Rifle Assault Rifle Assault Rifle Assault Rifle Assault Rifle Light Assault Rifle Mining Laser [Rating: 10] Favorites ----------- Power Ion Engine Engine Ion Engine Propulsion Light Treads Treads Light Treads Leg Aluminum Leg Wheel Wheel Utility Huge Storage Unit Device Improved Heat Sink Storage Huge Storage Unit Protection Light Armor Plating Weapon Assault Rifle Energy Gun Small Laser Ballistic Gun Assault Rifle Build | -11 -10 -10 -10 ------- Run | Yrd Mat Min Sub Slots Evolved . | . . . . Power . | . . . . Propulsion . | . . . . Utility . | . . . . Weapon . | . . . . Parts Attached 20 | 7 9 . 4 Power 2 | 1 1 . . Engine 2 | 1 1 . . Core . | . . . . Reactor . | . . . . Propulsion 5 | 2 2 . 1 Treads 3 | 2 1 . . Leg 1 | . . . 1 Wheel 1 | . 1 . . Hover . | . . . . Flight . | . . . . Utility 7 | 2 4 . 1 Device 1 | . . . 1 Storage 4 | 2 2 . . Processor . | . . . . Hackware . | . . . . Protection 2 | . 2 . . Artifact . | . . . . Weapon 6 | 2 2 . 2 Energy Gun 1 | 1 . . . Energy Cannon . | . . . . Ballistic Gun 5 | 1 2 . 2 Ballistic Cannon . | . . . . Launcher . | . . . . Special Weapon . | . . . . Impact Weapon . | . . . . Slashing Weapon . | . . . . Piercing Weapon . | . . . . Special Melee Weapon . | . . . . Unidentified Prototypes . | . . . . Parts Lost 10 | . 4 . 6 Power 2 | . 1 . 1 Propulsion 4 | . 2 . 2 Utility 2 | . 1 . 1 Weapon 2 | . . . 2 Highest Loss Streak 3 | . 3 . 3 To Critical Strikes . | . . . . Average Slot Usage (%) 94 | . 91 100 89 Engine 13 | . 13 14 6 Treads 16 | . 19 14 11 Wheel 7 | . 2 14 14 Storage 14 | . 14 14 14 Protection 12 | . 12 14 6 Energy Gun 6 | . 10 . . Ballistic Gun 21 | . 17 28 28 Peak Build Rating 10 | 6 8 8 10 Average Rating 7 | 3 6 8 8 On Entrance 5 | . 6 8 8 Naked Turns . | . . . . Heaviest Build 92 | 12 92 92 92 Greatest Support 40 | 40 40 10 10 Greatest Overweight (x) 9 | . 9 9 9 Average Overweight (x) 6 | . 4 9 8 Largest Inventory Capacity 25 | 8 25 25 25 Average Capacity 23 | 5 23 25 25 Most Carried 14 | 5 14 14 14 Average Carried 9 | 3 7 13 13 Final Capacity 25 | 8 25 25 25 Final Carried 14 | 2 13 14 11 Class Distribution -------------------- 100% | Mutant Dominant Class ---------------- Mutant | -10/Materials Mutant | -10/Mines Mutant | -10/Subcaves Resources | -11 -10 -10 -10 ----------- Run | Yrd Mat Min Sub Matter Collected 617 | 244 215 67 91 Remotely . | . . . . Salvage Created 873 | 57 640 50 126 Parts 53 | 3 39 5 6 Haulers Intercepted 1 | . 1 . . Recyclers Shooed 1 | . . 1 . Parts Field Recycled . | . . . . Retrieved Matter . | . . . . Parts Self-Destructed 5 | . . . 5 Prevented . | . . . . Kills | -11 -10 -10 -10 ------- Run | Yrd Mat Min Sub Combat Hostiles Destroyed 19 | . 13 3 3 Guns 19 | . 13 3 3 Classes Destroyed 8 | 1 5 . 2 Worker 3 | . 3 . . Hauler 1 | . 1 . . Recycler 1 | 1 . . . Watcher 3 | . 3 . . Swarmer 7 | . 3 3 1 Grunt 10 | . 10 . . Sentry 1 | . . . 1 Subdweller 1 | . . . 1 Best Kill Streak 5 | 1 5 3 2 Combat Bots Only 5 | . 5 3 2 Max Kills in Single Turn 1 | 1 1 1 1 Gunslinging . | . . . . Exploded . | . . . . Melee . | . . . . Uniques/NPCs Destroyed . | . . . . Combat | -11 -10 -10 -10 -------- Run | Yrd Mat Min Sub Hostile Shots Fired 150 | . 82 30 38 Missed 41 | . 18 13 10 Damage Taken 1397 | . 757 153 487 Core 256 | . 92 6 158 Absorbed by Shields . | . . . . Core Remaining (%) 100 | 100 . . . Volleys Fired 111 | 3 74 14 20 Largest 2 | 2 2 2 2 Hottest 60 | 60 60 40 40 Shots Fired 221 | 6 147 28 40 Gun 221 | 6 147 28 40 Cannon . | . . . . Launcher . | . . . . Special . | . . . . Kinetic 154 | 3 83 28 40 Thermal 67 | 3 64 . . Explosive . | . . . . Electromagnetic . | . . . . Robot Hit Streak 22 | 5 22 3 7 Robot Miss Streak 5 | . 5 4 3 Penetration Max . | . . . . Secondary Targets 3 | . 2 . 1 Max Gunslinging Chain 1 | . 1 . 1 Shots Hit Robots 138 | 5 96 12 25 Core Hits 55 | 2 42 4 7 Critical Kills . | . . . . Critical Parts Destroyed . | . . . . Critical Strikes . | . . . . Melee Attacks . | . . . . Impact . | . . . . Slashing . | . . . . Piercing . | . . . . Sneak Attacks . | . . . . Combat Hostiles . | . . . . Follow-up Attacks . | . . . . Damage Inflicted 1518 | 50 966 192 310 Guns 1448 | 50 936 152 310 Cannons . | . . . . Explosions . | . . . . Melee . | . . . . Ramming 70 | . 30 40 . Kinetic 979 | 17 500 152 310 Thermal 469 | 33 436 . . Explosive . | . . . . Electromagnetic . | . . . . Impact . | . . . . Slashing . | . . . . Piercing . | . . . . Highest Corruption . | . . . . Average Corruption . | . . . . Corruption Purged . | . . . . Corruption Blocked . | . . . . Overload Shots . | . . . . Overflow Damage . | . . . . Projectiles . | . . . . Explosions . | . . . . Melee . | . . . . Knockbacks . | . . . . Impact . | . . . . Kinetic . | . . . . Secondary . | . . . . Self-Inflicted Damage 31 | . 12 19 . Shots . | . . . . Rammed 10 | . 5 5 . Targets Rammed 10 | . 5 5 . Kicked . | . . . . Crushed . | . . . . Highest Temperature 201 | 10 201 . . Average Temperature 58 | 7 60 . . Received Heat Transfer 492 | . 375 . 117 Siege Activations . | . . . . Robots Corrupted . | . . . . Combat Hostiles . | . . . . Parts Fried . | . . . . Impact Corruptions . | . . . . Robots Melted . | . . . . Combat Hostiles . | . . . . Parts Melted . | . . . . Heat Transferred 1075 | 75 1000 . . Parts Sabotaged . | . . . . Parts Stolen . | . . . . Parts Stripped . | . . . . Power Chain Reactions . | . . . . Alert | -11 -10 -10 -10 ------- Run | Yrd Mat Min Sub Peak Influence 222 | 5 222 70 . Initial 3 | . 3 . . Average 39 | 2 49 22 . Maximum Alert Level 1 | . 1 . . Low Security (%) 99 | 100 99 100 . Level 1 . | . . . . Level 2 . | . . . . Level 3 . | . . . . Level 4 . | . . . . Level 5 . | . . . . High Security . | . . . . Max Security . | . . . . Squads Dispatched 2 | . 2 . . Investigation . | . . . . Extermination . | . . . . Reinforcement 2 | . 2 . . Assault . | . . . . Garrison . | . . . . Intercept . | . . . . Searches Triggered . | . . . . Construction Impeded . | . . . . Haulers Reinforced . | . . . . Active Scanning Responses . | . . . . Cargo Convoy Interrupts . | . . . . Stealth | -11 -10 -10 -10 --------- Run | Yrd Mat Min Sub Distress Signals 2 | . 2 . . Communications Jammed . | . . . . Distress Signals . | . . . . Times Spotted 34 | . 27 3 4 Peak Tracking Total 4 | . 4 3 2 Tactical Retreats 2 | . 2 . . Traps | -11 -10 -10 -10 ------- Run | Yrd Mat Min Sub Traps Triggered 1 | . 1 . . Indirectly . | . . . . Trap Hack Attempts . | . . . . Triggered . | . . . . Disarmed . | . . . . Reprogrammed . | . . . . Reused . | . . . . Traps Extracted . | . . . . Installed . | . . . . Triggered . | . . . . Machines | -11 -10 -10 -10 ---------- Run | Yrd Mat Min Sub Machines Disabled . | . . . . Max in Single Turn . | . . . . Machines Repaired . | . . . . Machines Dismantled . | . . . . Machines Sabotaged . | . . . . Overloaded Fab Kills . | . . . . Hacking | -11 -10 -10 -10 --------- Run | Yrd Mat Min Sub Machines Accessed 2 | . 1 1 . Terminals 1 | . . 1 . Fabricators . | . . . . Repair Stations . | . . . . Recycling Units 1 | . 1 . . Scanalyzers . | . . . . Garrison Access . | . . . . Total Hacks 2 | . 1 1 . Successful 2 | . 1 1 . Failed . | . . . . Catastrophic . | . . . . Database Lockouts . | . . . . Manual 1 | . 1 . . Terminals 1 | . . 1 . Fabricators . | . . . . Repair Stations . | . . . . Recycling Units 1 | . 1 . . Scanalyzers . | . . . . Garrison Access . | . . . . Terminal Hacks 1 | . . 1 . Dispatch Records 1 | . . 1 . Fabricator Hacks . | . . . . Repair Station Hacks . | . . . . Recycling Unit Hacks . | . . . . Scanalyzer . | . . . . Garrison Access Hacks . | . . . . Unauthorized Hacks . | . . . . Terminals . | . . . . Fabricators . | . . . . Repair Stations . | . . . . Recycling Units . | . . . . Scanalyzers . | . . . . Garrison Access . | . . . . Data Cores Recovered . | . . . . Used . | . . . . Hacking Detections 1 | . 1 . . Full Trace Events . | . . . . Feedback Events . | . . . . Feedback Blocked . | . . . . Robot Schematics Acquired . | . . . . Robots Built . | . . . . Authchips . | . . . . Time . | . . . . Total Robot Build Rating . | . . . . Part Schematics Acquired . | . . . . Parts Built . | . . . . Authchips . | . . . . Time . | . . . . Total Part Build Rating . | . . . . Parts Repaired . | . . . . Time . | . . . . Parts Recycled . | . . . . Recycled Matter . | . . . . Retrieved Matter . | . . . . Retrieved Components . | . . . . Parts Scanalyzed . | . . . . Part Schematics Acquired . | . . . . Parts Damaged . | . . . . Bothacking | -11 -10 -10 -10 ------------ Run | Yrd Mat Min Sub Used RIF Installer . | . . . . Robots Hacked . | . . . . Non-combat . | . . . . Combat . | . . . . Robot Hacks Applied . | . . . . Relay Couplers Released . | . . . . Fabnet Peak Effective % . | . . . . Robots Rewired . | . . . . Allies Hacked . | . . . . Hacks Repelled . | . . . . Allies | -11 -10 -10 -10 -------- Run | Yrd Mat Min Sub Total Allies 1 | . . 1 . Largest Group 1 | . . 1 . Highest-Rated Group 31 | . . 31 . Highest-Rated Ally 31 | . . 31 . Total Orders . | . . . . Ally Attacks . | . . . . Total Damage . | . . . . Kills . | . . . . Allies Corrupted . | . . . . Allies Melted . | . . . . Intel | -11 -10 -10 -10 ------- Run | Yrd Mat Min Sub Robot Analysis Total . | . . . . Derelict Logs Recovered 3 | . . 1 2 Drone Launches . | . . . . Drone Recoveries . | . . . . Exploration | -11 -10 -10 -10 ------------- Run | Yrd Mat Min Sub Turns Passed 3932 | 95 2322 1172 343 Spaces Moved 1362 | 47 666 516 133 Core 17 | 17 . . . Treads 476 | 30 446 . . Legs . | . . . . Wheels 869 | . 220 516 133 Hover . | . . . . Flight . | . . . . Fastest Speed 50 | 50 160 215 200 Average Speed 257 | 120 310 215 208 Slowest Speed 480 | 160 480 215 215 Overloaded Moves . | . . . . Propulsion Burnouts . | . . . . Robots Hopped . | . . . . Cave-ins Triggered . | . . . . Exploration Rate (%) 49 | 5 83 99 12 Regions Visited 3 Branch Regions 2 Pre-discovered Areas 3 | . . 1 2 Known Exits Taken . | . . . . Unknown Exits Taken 3 | 1 1 1 . Scrap Searched 1 | . . 1 . Spaces Dug . | . . . . Terrain Destroyed . | . . . . Melee . | . . . . Projectile . | . . . . AOE . | . . . . Terrain Rammed . | . . . . Walls Destroyed . | . . . . Machines Disabled . | . . . . Actions | -11 -10 -10 -10 --------- Run | Yrd Mat Min Sub Total 1560 | 80 777 543 160 Wait 31 | 17 4 8 2 Move 1359 | 46 665 515 133 Hop . | . . . . Pick Up 26 | 6 18 1 1 Fast Attach 2 | 2 . . . Attach 14 | 5 5 . 4 Detach 1 | 1 . . . Swap 4 | . 4 . . Drop 2 | . 2 . . Fire 111 | 3 74 14 20 Melee . | . . . . Ram 6 | . 2 4 . Kick . | . . . . Crush 4 | . 3 1 . Escape Stasis . | . . . . Rewire . | . . . . Trap . | . . . . Miscellaneous . | . . . . Route ------- -11/Scrapyard -10/Materials (discovered 4 exits: [*Mat x3] / *Min) -10/Mines (discovered 3 exits: [*Mat x2] / *Sub) -10/Subcaves (discovered 1 exit: [*Mat]) History --------- Turn | Location | Event 10 | -11/Scrapyard | Discovered new exit (range 14) 96 | -11/Scrapyard | Entered Materials 313 | -10/Materials | Build established: Mutant 319 | -10/Materials | Discovered new exit (range 3) 660 | -10/Materials | Discovered new exit (range 12) 752 | -10/Materials | Discovered new exit (range 9) 975 | -10/Materials | Discovered new exit (range 9) 985 | -10/Materials | Lost 3 parts (2n1u) 2418 | -10/Materials | Entered Mines 2513 | -10/Mines | Discovered new exit (range 8) 2515 | -10/Mines | Learned location of Mines (-8) 2526 | -10/Mines | Received a Mining Laser from a helpful Derelict 3118 | -10/Mines | Discovered new exit (range 8) 3586 | -10/Mines | Discovered new exit (range 3) 3590 | -10/Mines | Entered Subcaves 3590 | -10/Subcaves | Discovered new exit (range 10) 3601 | -10/Subcaves | Learned location of Storage (-7) 3856 | -10/Subcaves | Core integrity fell below 50% 3872 | -10/Subcaves | Core integrity fell below 20% 3900 | -10/Subcaves | Lost 3 parts (1n2w) 3933 | -10/Subcaves | Destroyed by UI-FX7(R) with Subdweller Machine Gun Last Messages --------------- 03673_ ZH-PDC(O) collects matter. 03746_ Lgt. Armor Plating destroyed. 03755_ Ion Engine destroyed. 03756_ S-10 Pest destroyed. 03756_ Switching to secondary target: Y-45 Defender. 03759_ Subatomizers dissect the Lgt. Ion Engine. 03759_ Y-45 Defender destroyed. 03763_ Lgt. Assault Rifle fries itself beyond repair. 03765_ Heat Sink fries itself beyond repair. 03766_ Lgt. Ion Engine fries itself beyond repair. 03767_ Heat Sink fries itself beyond repair. 03768_ Acquired 36 matter. 03770_ Flight Unit fries itself beyond repair. 03867_ Assault Rifle destroyed. 03869_ Lgt. Treads destroyed. 03885_ JZ-ASD(R) destroyed. 03886_ Subatomizers dissect the Sub. Power Source. 03902_ Acquired Sub. Power Source. 03903_ Acquired 52 matter. 03931_ Wheel destroyed. Map ----- +----------------------------------------------------+ | ?????????????????????# ## #?????????????????? | | ?????????????????????##### #?????????????????? | | ?????????????????????????# ##????????????????? | | ?????????????????????????## ###??????????????? | | ??????????????????????????### ##?????????????? | | ????????????????????????????## #?????????????? | | ?????????????????????# ??????# #?????????????? | | ???????????????? #?## ??????## #?????????????? | | ?????????????? ## ???????## #?????????????? | | ??????????????? ????????# #?????????????? | | ???????????????# ???????## #?????????????? | | ?????????????### ######### #?????????????? | | ????????????## ## # #?????????????? | | ???????????## ## % #?????????????? | | ??????????## ## % #?????????????? | | ?????????## ## #?????????????? | | ?????????# #?????????????? | | ????????## #?????????????? | | ????????? ##?????????????? | | ????????????# #### ##?????????????? | | ???????????## ##??# #?????????????? | | ???????????# #???# #?????????????? | | ???????????### ##???## #?????????????? | | ??????????###" #?????# #?????????????? | | ??????????# #"## #?????####?????????????? | | ??????????## ##### @#??????????????????????? | | ???????????# ##### R##??????????????????????? | | ??????????## #### #???????????????????????? | | ??????????# #??# #???????????????????????? | | ??????????## ##??## ??????????????????????? | | ???????????# #????# ????????????????????? | | ???????????#"""?"" #### ??????????????????? | | ???????????# " ????# ????????????????? | | ??????????? #### ????? ??????????????? | | ???????????" "#??## ?????? ## #?????????????? | | ???????????" "#???# ?????? #??####?????????????? | | ??????????"" "" ??? ??????? ???????????????????? | | ??????????#"## ???###??????? ??????????????????? | | ???????????#??##??????????????#??????????????????? | | ?????????????????????????????????????????????????? | | ?????????????????????????????????????????????????? | | ?????????????????????????????????????????????????? | | ?????????????????????????????????????????????????? | | ?????????????????????????????????????????????????? | | ?????????????????????????????????????????????????? | | ?????????????????????????????????????????????????? | | ?????????????????????????????????????????????????? | | ?????????????????????????????????????????????????? | | ?????????????????????????????????????????????????? | | ?????????????????????????????????????????????????? | +----------------------------------------------------+ Best States ------------- Heat Dissipation 39 Energy Generation 10 Energy Capacity 250 Matter Stores 300 Matter Capacity 300 Sight Range 16 Terrain Scan Density 10 Armor Coverage 150 Evasion (%) 50 Recoil Reduction 2 Item Schematics ----------------- None Robot Schematics ------------------ None Fabricated ------------ Nothing Alien Tech Used ----------------- None Achievements -------------- None Challenges ------------ None Game ------ Seed HeartBlastArmor Manual? 0 Play Time 00:14:04 Cumulative 60.9 hours Start 2025.04.22 @ 20:34:01 End 2025.04.22 @ 20:47:46 Sessions 1 Manual Loads 0 Difficulty Rogue Special Mode None Game No. 109 Rogue 109 Adventurer 0 Explorer 0 Win Type - Total 1 Types 1/0/0/0/0/0/0/0/0 Lore% 52 Gallery% 46 Achievement% 40 Wizard Run 0 Options --------- Layout 0 ASCII 0 Keyboard 0 Movement Mouse Keybinds 0 Fullscreen 1 Font 16/SmallcapsGlow Map View 75x55 Zoom Use 0% Tactical HUD 1 Map Filters NONE Filters NONE Steam 1 RUN: 3487decc-cca1-4ddb-be3f-2e4c8884a521